bitfinex/quotes_BTCUSD_20260307
["timestamp","ask_amount","ask_price","bid_price","bid_amount"]
[1772889894260,0.000122,68007.0,67998.0,0.07353157]
[1772889894478,0.00148,68004.0,67998.0,0.07353157]
[1772889896994,0.00170001,68004.0,67998.0,0.07353157]
[1772889899363,0.00022001,68010.0,67999.0,0.04663278]
[1772889899573,0.00148,68009.0,68001.0,0.01045692]
[1772889900313,0.00177673,68010.0,68001.0,0.01045692]
[1772889900434,0.00029673,68010.0,68001.0,0.01045692]
[1772889901274,0.00029673,68010.0,68002.0,0.07352724]
[1772889901480,0.00148,68014.0,68005.0,0.01093536]
[1772889901675,0.00148,68014.0,68007.0,0.01093536]
[1772889901872,0.00148,68014.0,68007.0,0.01101208]
[1772889902999,0.00022001,68018.0,68008.0,0.01093536]
[1772889903638,0.00022001,68018.0,68009.0,0.07351968]
[1772889907606,0.00575,68024.0,68008.0,0.07351968]
[1772889907800,0.00148,68023.0,68009.0,0.01093536]
[1772889908447,0.0121018,68023.0,68009.0,0.01093536]
[1772889909655,0.0121018,68023.0,68010.0,0.0735186]
[1772889910796,0.01232181,68023.0,68010.0,0.0735186]
[1772889913769,0.01232181,68023.0,68010.0,0.03062282]
[1772889913970,0.01232181,68023.0,68009.0,0.0735186]
[1772889914294,0.00148,68022.0,68011.0,0.01070495]
[1772889915760,0.00015,68018.0,68011.0,0.01070495]
[1772889916166,0.00015,68018.0,68012.0,0.07351643]
[1772889917363,0.0106218,68017.0,68012.0,0.02558475]
[1772889917730,0.0106218,68017.0,68012.0,0.07351643]
[1772889918321,0.00148,68016.0,68009.0,0.0002]
[1772889920314,0.07351322,68015.0,68003.0,0.000122]
[1772889920492,0.0106218,68014.0,68003.0,0.000122]
[1772889922901,0.00148,68016.0,68003.0,0.000122]
[1772889923103,0.00148,68016.0,68004.0,0.01070495]
[1772889923780,0.07351148,68017.0,68004.0,0.01070495]
[1772889924075,0.00148,68015.0,68004.0,0.01070495]
[1772889925953,0.00148,68015.0,68005.0,0.073524]
[1772889927143,0.00148,68015.0,68005.0,0.08422895]
[1772889931449,0.07351148,68017.0,68005.0,0.08422895]
[1772889931629,0.00148,68016.0,68005.0,0.08422895]
[1772889933463,0.00148,68016.0,68005.0,0.08442895]
[1772889933765,0.07521218,68016.0,68005.0,0.08442895]
[1772889938974,0.00148,68015.0,68005.0,0.08442895]
[1772889950597,0.00148,68015.0,68005.0,0.073724]
[1772889950812,0.00148,68015.0,68005.0,0.08478742]
[1772889954652,0.00022001,68016.0,68005.0,0.08478742]
[1772889954872,0.00148,68015.0,68005.0,0.08478742]
[1772889955629,0.00148,68015.0,68005.0,0.01126342]
[1772889956273,0.00022001,68016.0,68005.0,0.01126342]
[1772889956474,0.00148,68014.0,68007.0,0.01106342]
[1772889961527,0.00148,68014.0,68008.0,0.07352076]
[1772889961707,0.00148,68014.0,68008.0,0.08372002]
[1772889965085,0.00148,68014.0,68008.0,0.07352076]
[1772889966942,0.00213815,68012.0,68003.0,0.02719779]
[1772889967166,0.00213815,68012.0,68003.0,0.07352611]
[1772889969068,0.07351751,68011.0,68002.0,0.0002]
[1772889970119,0.07351751,68011.0,68003.0,0.0002]
[1772889970516,0.00233433,68010.0,68002.0,0.0002]
[1772889970716,0.00233433,68010.0,67998.0,0.07373157]
[1772889970919,0.00239333,68010.0,67998.0,0.07373157]
[1772889971140,0.07351968,68009.0,67998.0,0.07373157]
[1772889971322,0.00148,68008.0,67998.0,0.07373157]
[1772889972042,0.00231628,68007.0,67996.0,0.0002]
[1772889972261,0.00231628,68007.0,67995.0,0.0002]
[1772889972477,0.00231628,68006.0,67995.0,0.0002]
[1772889973289,0.073524,68005.0,67995.0,0.0002]
[1772889973488,0.00255776,68004.0,67995.0,0.0002]
[1772889976714,0.07352616,68003.0,67995.0,0.0002]
[1772889976868,0.00148,68002.0,67995.0,0.0002]
[1772889977922,0.00148,68001.0,67995.0,0.0002]
[1772889982308,0.07500885,68001.0,67995.0,0.0002]
[1772889984585,0.07522886,68001.0,67995.0,0.0002]
[1772889988073,0.07522886,68001.0,67991.0,0.0737391]
[1772889988851,0.07522886,68001.0,67991.0,0.0002]
[1772889989866,0.00221023,67998.0,67988.0,0.0002]
[1772889992019,0.07353265,67997.0,67988.0,0.0002]
[1772889999013,0.07375266,67997.0,67988.0,0.0002]
[1772890011142,0.07375266,67997.0,67988.0,1e-08]
[1772890012496,0.00148,67996.0,67988.0,1e-08]
[1772890014998,0.07353481,67995.0,67988.0,1e-08]
[1772890016536,0.00022001,68001.0,67989.0,0.04495469]
[1772890016739,0.00148,68000.0,67991.0,0.00140141]
[1772890016983,0.000122,68007.0,67996.0,0.00140141]
[1772890017154,0.00148,68006.0,67997.0,0.0463561]
[1772890017355,0.00148,68006.0,67994.0,0.0735359]
[1772890018609,0.00148,68005.0,67994.0,0.0735359]
[1772890019028,0.07352508,68004.0,67994.0,0.0735359]
[1772890025158,0.00148,68003.0,67997.0,0.00222815]
[1772890028479,0.00148,68003.0,67998.0,0.07353157]
[1772890031427,0.00148,68003.0,67994.0,0.0735359]
[1772890031626,0.00148,68003.0,67994.0,0.07576821]
[1772890031827,0.07374514,68004.0,67994.0,0.07576821]
[1772890032031,0.00148,68003.0,67994.0,0.07576821]
[1772890032326,0.00148,68011.0,67996.0,0.0288505]
[1772890032525,0.00152012,68011.0,67999.0,0.00223231]
[1772890032728,0.00152012,68011.0,68001.0,0.00220803]
[1772890033120,4.012e-05,68011.0,68001.0,0.00220803]
[1772890033320,0.00148,68010.0,68001.0,0.00220803]
[1772890033544,0.00148,68010.0,68002.0,0.07352724]
[1772890036139,0.00022001,68016.0,68002.0,0.10310385]
[1772890036140,0.00148,68012.0,68002.0,0.10310385]
[1772890036508,0.00148,68012.0,68002.0,0.10314397]
[1772890036756,0.00148,68012.0,68002.0,0.10333698]
[1772890038398,0.07373222,68016.0,68002.0,0.10333698]
[1772890038600,0.00148,68015.0,68002.0,0.10314397]
[1772890038802,0.00148,68015.0,68003.0,0.00019177]
[1772890040553,0.00022001,68012.0,68003.0,0.00019177]
[1772890041168,0.00022001,68012.0,68002.0,0.07356736]
[1772890042860,0.00022001,68012.0,68002.0,4.012e-05]
[1772890044792,0.00170001,68012.0,68002.0,4.012e-05]
[1772890048106,0.00170001,68012.0,68003.0,0.07352616]
[1772890058317,0.00022001,68012.0,68003.0,0.07352616]
[1772890058522,0.00148,68011.0,68003.0,0.07352616]
[1772890064674,0.00148,68011.0,68003.0,0.07372616]
[1772890067965,0.00022001,68012.0,68003.0,0.07372616]
[1772890068287,0.00148,68011.0,68003.0,0.07372616]
[1772890070922,0.01161823,68015.0,68003.0,0.07372616]
[1772890071121,0.29683227,68030.0,68003.0,0.07372616]
[1772890071122,0.05481386,68019.0,68003.0,0.07372616]
[1772890071342,0.00170001,68019.0,68004.0,0.04599257]
[1772890071677,0.00170001,68019.0,68005.0,0.00011066]
[1772890071883,0.00022001,68019.0,68005.0,0.00011066]
[1772890072085,0.07925351,68024.0,68005.0,0.00011066]
[1772890072086,0.00022001,68026.0,68008.0,0.04599257]
[1772890072400,0.00148,68025.0,68011.0,0.00389062]
[1772890072595,0.00022001,68026.0,68012.0,0.07743856]
[1772890072749,0.00148,68025.0,68012.0,0.07891856]
[1772890073093,0.000122,68027.0,68012.0,0.07499643]
[1772890073257,0.00148,68026.0,68013.0,0.00394654]
[1772890074271,0.00022001,68022.0,68013.0,0.00394654]
[1772890075342,0.00022001,68022.0,68014.0,0.07351427]
[1772890082706,0.00022001,68022.0,68012.0,0.00148]
[1772890083069,0.00022001,68022.0,68007.0,0.07352184]
[1772890083320,0.00022001,68022.0,68009.0,0.00148]
[1772890083682,0.00022001,68022.0,68010.0,0.00148]
[1772890084089,0.00022001,68022.0,68007.0,0.07352184]
[1772890084490,0.01103974,68021.0,68009.0,0.00148]
[1772890087210,0.01125975,68021.0,68010.0,0.0735186]
[1772890094482,0.01125975,68021.0,68010.0,0.0737186]
[1772890098393,0.01125975,68021.0,68010.0,0.29301584]
[1772890099338,0.01125975,68021.0,68012.0,0.07351643]
[1772890100366,0.01125975,68021.0,68012.0,0.29281367]
[1772890101344,0.01125975,68021.0,68014.0,0.21929724]
[1772890106902,0.01125975,68021.0,68015.0,0.07351319]
[1772890107302,0.01092616,68021.0,68015.0,0.07351319]
[1772890107706,0.04443037,68022.0,68015.0,0.07351319]
[1772890108027,0.00148,68025.0,68015.0,0.07351319]
[1772890108446,0.00148,68026.0,68015.0,0.07351319]
[1772890108883,0.00170001,68029.0,68017.0,0.07351103]
[1772890109094,0.00170001,68029.0,68018.0,0.00999916]
[1772890109348,5.2e-05,68034.0,68018.0,0.00999916]
[1772890109554,0.01112952,68036.0,68026.0,0.00999916]
[1772890109555,0.00022001,68036.0,68026.0,0.00999916]
[1772890109727,0.00022001,68036.0,68026.0,0.01147916]
[1772890110851,0.00062141,68036.0,68026.0,0.01147916]
[1772890111024,0.00062141,68036.0,68027.0,0.07350022]
[1772890112264,0.00062141,68036.0,68026.0,0.08497938]
[1772890112265,0.04184523,68034.0,68017.0,0.21941924]
[1772890112473,0.04184523,68030.0,68012.0,0.07351643]
[1772890112803,0.01090951,68027.0,68014.0,0.00148]
[1772890112938,0.07350034,68027.0,68015.0,0.07351319]
[1772890113143,0.01090951,68026.0,68015.0,0.07351319]
[1772890114470,0.01090951,68026.0,68017.0,0.001]
[1772890114672,0.01090951,68026.0,68015.0,0.07351319]
[1772890118526,0.00148,68029.0,68015.0,0.07351319]
[1772890118877,0.0125478,68029.0,68015.0,0.07351319]
[1772890119289,0.0125478,68029.0,68017.0,0.01112563]
[1772890119941,0.00148,68028.0,68018.0,0.07350995]
[1772890120340,0.08456591,68029.0,68018.0,0.07350995]
[1772890120528,0.00148,68028.0,68018.0,0.07350995]
[1772890122326,0.00148,68028.0,68015.0,0.07371319]
[1772890127129,0.00148,68028.0,68018.0,0.00015]
[1772890127325,0.0749793,68028.0,68018.0,0.00015]
[1772890128031,0.0860471,68028.0,68018.0,0.00015]
[1772890130642,0.0125478,68028.0,68018.0,0.00015]
[1772890130850,0.0110678,68028.0,68018.0,0.00015]
[1772890131206,0.00148,68027.0,68018.0,0.00015]
[1772890131377,0.00148,68027.0,68018.0,0.01127563]
[1772890131571,0.00148,68027.0,68019.0,0.07350887]
[1772890132448,0.07349521,68032.0,68019.0,0.07350887]
[1772890132659,0.00148,68029.0,68019.0,0.07350887]
[1772890133075,0.00022001,68028.0,68019.0,0.07350887]
[1772890134725,0.00170001,68028.0,68019.0,0.07350887]
[1772890134942,0.00148,68029.0,68020.0,0.04558208]
[1772890135158,0.00148,68029.0,68020.0,0.05670771]
[1772890135374,0.000122,68034.0,68020.0,0.05670771]
[1772890135602,0.00148,68029.0,68020.0,0.05670771]
[1772890136213,0.00148,68029.0,68021.0,0.07350671]
[1772890136869,0.00148,68032.0,68021.0,0.07350671]
[1772890137267,0.000122,68034.0,68021.0,0.07350671]
[1772890137483,0.00148,68032.0,68021.0,0.07350671]
[1772890137821,0.00148,68032.0,68022.0,0.01112563]
[1772890138260,0.00148,68032.0,68023.0,0.07350454]
[1772890139291,0.00148,68032.0,68024.0,0.01112563]
[1772890139504,0.000122,68034.0,68024.0,0.01112563]
[1772890139861,0.00022001,68032.0,68024.0,0.01112563]
[1772890140402,0.00022001,68032.0,68025.0,0.07350238]
[1772890141002,0.0734888,68038.0,68027.0,0.01117904]
[1772890141003,0.00148,68038.0,68027.0,0.01117904]
[1772890141221,0.00012037,68038.0,68029.0,0.01117904]
[1772890142062,0.00012037,68038.0,68029.0,0.01178654]
[1772890142274,0.00012037,68038.0,68029.0,0.0006075]
[1772890142476,0.00012037,68038.0,68030.0,0.07349698]
[1772890143091,0.00012037,68038.0,68030.0,0.07410448]
[1772890143606,0.00160037,68038.0,68030.0,0.07410448]
[1772890144444,0.00012037,68038.0,68030.0,0.07410448]
[1772890145427,0.00160037,68038.0,68030.0,0.07410448]
[1772890147208,0.00182038,68038.0,68030.0,0.07410448]
[1772890152360,0.07530935,68038.0,68030.0,0.07410448]
[1772890152866,0.00182038,68038.0,68030.0,0.07410448]
[1772890154019,0.01273187,68038.0,68030.0,0.07410448]
[1772890156170,0.00182038,68038.0,68030.0,0.07410448]
[1772890165016,0.00182038,68038.0,68030.0,0.07430448]
[1772890167073,0.00034038,68038.0,68030.0,0.07430448]
[1772890167312,0.00182038,68038.0,68030.0,0.07430448]
[1772890167602,0.07370362,68043.0,68030.0,0.07430448]
[1772890167603,0.00148,68041.0,68035.0,0.01130299]
[1772890167777,0.00156252,68041.0,68030.0,0.30490471]
[1772890167978,8.252e-05,68041.0,68030.0,0.08560747]
[1772890168166,0.00156252,68041.0,68030.0,0.08560747]
[1772890169479,0.00156252,68041.0,68030.0,0.30490471]
[1772890170435,0.00156252,68041.0,68030.0,0.08560747]
[1772890173647,0.00178253,68041.0,68030.0,0.08560747]
[1772890177500,0.00178253,68041.0,68030.0,0.07430448]
[1772890177676,0.00178253,68041.0,68031.0,0.01130299]
[1772890179458,0.00178253,68041.0,68032.0,0.07349482]
[1772890180512,0.00178253,68041.0,68032.0,0.07397962]
[1772890183821,0.00178253,68041.0,68032.0,0.07380894]
[1772890185999,0.00178253,68041.0,68032.0,0.07363827]
[1772890190810,0.07526771,68041.0,68032.0,0.07363827]
[1772890191222,0.00148,68040.0,68032.0,0.07363827]
[1772890197094,0.01082532,68039.0,68030.0,0.07635342]
[1772890197292,0.01082532,68039.0,67996.0,0.51361291]
[1772890197293,0.04922532,68017.0,67977.0,0.07911685]
[1772890197451,0.48952391,67967.0,67964.0,0.000125]
[1772890197689,0.080651,67972.0,67959.0,0.04749808]
[1772890197690,0.1172596,67969.0,67959.0,0.04749808]
[1772890197897,0.12808492,67966.0,67957.0,0.07339663]
[1772890198101,0.53574,67963.0,67957.0,0.04871262]
[1772890198311,0.00148,67972.0,67950.0,0.07558287]
[1772890198312,0.09577691,67985.0,67951.0,0.07506202]
[1772890198522,7.93e-06,67957.0,67956.0,0.04499643]
[1772890198750,0.00575,67997.0,67956.0,0.04499643]
[1772890198751,0.00575,67997.0,67957.0,0.926525]
[1772890198922,0.00575,67997.0,67959.0,0.01070954]
[1772890199103,0.00144,67993.0,67962.0,0.04479593]
[1772890199309,0.00144,67993.0,67965.0,0.07356727]
[1772890199510,0.07497742,67993.0,67967.0,0.01070954]
[1772890199679,0.07497742,67993.0,67969.0,0.01070954]
[1772890199879,0.07497742,67993.0,67971.0,0.01070954]
[1772890200078,0.07497742,67993.0,67973.0,0.0174324]
[1772890200277,0.00144,67993.0,67976.0,0.06623733]
[1772890200524,0.00144,67993.0,67979.0,0.0174324]
[1772890200727,0.00144,67993.0,67980.0,0.00148]
[1772890200893,0.00144,67993.0,67981.0,0.00148]
[1772890201108,0.00144,67993.0,67982.0,0.00148]
[1772890201313,0.00144,67993.0,67983.0,0.07354779]
[1772890201931,0.07497735,67993.0,67983.0,0.07354779]
[1772890202132,0.07497735,67993.0,67983.0,0.07502779]
[1772890202933,0.07497735,67993.0,67983.0,0.07354779]
[1772890203431,0.07497735,67993.0,67984.0,0.075026]
[1772890203803,0.07353735,67993.0,67984.0,0.075026]
[1772890204320,0.07353735,67993.0,67985.0,0.00148]
[1772890204840,0.07353735,67993.0,67984.0,0.00148]
[1772890205361,0.0169379,67989.0,67981.0,0.0004014]
[1772890205560,0.06544019,67989.0,67979.0,0.00148]
[1772890205705,0.0169379,67987.0,67979.0,0.00148]
[1772890206365,0.0169379,67987.0,67974.0,0.07355753]
[1772890206562,0.0169379,67987.0,67977.0,0.00148]
[1772890206742,0.0169379,67987.0,67974.0,0.07359765]
[1772890207432,0.0169379,67985.0,67976.0,0.07355537]
[1772890207984,0.0169379,67985.0,67977.0,0.00148]
[1772890209267,0.0169379,67985.0,67974.0,0.07359765]
[1772890209539,0.0169379,67985.0,67975.0,0.00148]
[1772890209677,0.09048418,67985.0,67975.0,0.00148]
[1772890209878,0.09048418,67985.0,67974.0,0.07359765]
[1772890210071,0.09048418,67985.0,67979.0,0.0002]
[1772890210874,0.3,67993.0,67980.0,0.06225654]
[1772890211017,0.0131898,68003.0,67983.0,0.06225654]
[1772890211188,0.0131898,68003.0,67986.0,0.01740075]
[1772890211392,0.08671674,68003.0,67990.0,0.01740075]
[1772890211591,0.08671674,68003.0,67991.0,0.00148]
[1772890211990,0.08671674,68003.0,67991.0,0.01888075]
[1772890212214,0.07352752,68002.0,67991.0,0.01888075]
[1772890213496,0.07352752,68002.0,67992.0,0.07353806]
[1772890214548,0.0739297,68000.0,67992.0,0.07353806]
[1772890215393,0.09194294,68000.0,67992.0,0.07353806]
[1772890217175,0.09216295,68000.0,67992.0,0.07353806]
[1772890218587,0.01801324,67999.0,67992.0,0.07353806]
[1772890220787,0.01801324,67999.0,67992.0,0.05868032]
[1772890220992,0.1457087,67998.0,67992.0,0.05868032]
[1772890221262,0.14573189,67997.0,67992.0,0.05868032]
[1772890221452,0.14573189,67996.0,67992.0,0.05868032]
[1772890221653,0.01801324,67999.0,67992.0,0.05868032]
[1772890221868,0.14579284,67998.0,67992.0,0.05868032]
[1772890222044,0.14579284,67997.0,67992.0,0.05868032]
[1772890222245,0.07374255,68007.0,67993.0,0.01740075]
[1772890222433,0.00022001,68007.0,67996.0,0.01740075]
[1772890222639,0.00022001,68007.0,67998.0,0.01740075]
[1772890223135,0.00022001,68007.0,67997.0,0.00148]
[1772890223559,0.00022001,68007.0,67997.0,0.00152012]
[1772890223764,0.00022001,68007.0,67997.0,0.01892087]
[1772890223929,0.00022001,68007.0,67998.0,0.07353157]
[1772890224966,0.00022001,68000.0,67998.0,0.07353157]
[1772890225328,0.00022001,68000.0,67999.0,0.00148]
[1772890225947,0.00022001,68000.0,67999.0,0.07501049]
[1772890226270,0.00022001,68000.0,67999.0,0.00148]
[1772890226882,0.00022001,68000.0,67999.0,0.07501049]
[1772890228991,0.00022001,68007.0,67999.0,0.07501049]
[1772890229173,0.07374213,68007.0,67999.0,0.07501049]
[1772890229368,0.07372351,68006.0,67999.0,0.07501049]
[1772890229779,0.0002005,68006.0,67999.0,0.07501049]
[1772890231829,0.01821374,68006.0,67999.0,0.07501049]
[1772890232573,0.00022001,68000.0,67999.0,0.07501049]
[1772890234496,0.14681439,68000.0,67999.0,0.07501049]
[1772890234691,0.14681439,68000.0,67999.0,0.00148]
[1772890234897,0.01821374,68006.0,67999.0,0.00148]
[1772890235278,0.01821374,68006.0,67996.0,0.07352892]
[1772890235483,0.01821374,68006.0,68000.0,0.00148]
[1772890239176,0.01795577,68005.0,68001.0,0.07352833]
[1772890240118,0.17583102,68005.0,68001.0,0.07352833]
[1772890240317,0.01795577,68004.0,68000.0,0.00148]
[1772890242467,0.01795577,68004.0,68001.0,0.07352833]
[1772890244660,0.07394354,68006.0,68001.0,0.07352833]
[1772890244862,0.01795577,68005.0,68001.0,0.07337833]
[1772890246507,0.0002005,68017.0,68003.0,0.01817023]
[1772890246756,0.00022001,68020.0,68006.0,0.07020285]
[1772890246948,0.07365256,68026.0,68008.0,0.07352076]
[1772890247151,0.23949484,68024.0,68011.0,0.07020285]
[1772890247350,0.16599109,68024.0,68013.0,0.08837308]
[1772890247532,0.09252753,68024.0,68014.0,0.00148]
[1772890247932,0.01902378,68024.0,68014.0,0.00148]
[1772890248295,0.01902378,68024.0,68016.0,0.01817023]
[1772890248578,0.09252731,68024.0,68017.0,0.08837308]
[1772890248922,0.00022001,68018.0,68017.0,0.16188411]
[1772890249333,0.00022001,68018.0,68017.0,0.14859198]
[1772890251864,0.01902378,68024.0,68018.0,0.08837308]
[1772890252732,0.22001807,68033.0,68018.0,0.08837308]
[1772890252944,0.07389525,68033.0,68018.0,0.07020285]
[1772890253149,0.07389525,68033.0,68017.0,0.07351103]
[1772890253375,0.07389525,68033.0,68018.0,0.07020285]
[1772890253529,0.07389525,68033.0,68021.0,0.01817023]
[1772890253728,0.07389525,68033.0,68023.0,0.07350454]
[1772890253977,0.00040121,68033.0,68023.0,0.07350454]
[1772890254521,0.07389534,68033.0,68023.0,0.07350454]
[1772890255443,0.00022001,68025.0,68023.0,0.07350454]
[1772890263219,0.00022001,68025.0,68023.0,0.09721281]
[1772890263862,0.00022001,68025.0,68023.0,0.08251177]
[1772890264141,0.00022001,68025.0,68024.0,0.02370827]
[1772890264367,0.00022001,68025.0,68024.0,0.01042652]
[1772890264792,0.00022001,68032.0,68025.0,0.07350238]
[1772890264993,0.00022001,68032.0,68026.0,0.01868911]
[1772890266508,0.00022001,68032.0,68026.0,0.01853911]
[1772890267041,0.00022001,68032.0,68027.0,0.09218933]
[1772890269232,0.00022001,68032.0,68024.0,0.07350242]
[1772890269514,0.00022001,68032.0,68025.0,0.01828105]
[1772890271240,0.00022001,68032.0,68026.0,0.0735013]
[1772890274925,0.00022001,68032.0,68026.0,0.09178235]
[1772890275127,0.00022001,68032.0,68027.0,0.01828105]
[1772890275329,0.00022001,68032.0,68029.0,0.01828105]
[1772890276421,0.00022001,68032.0,68029.0,0.0181104]
[1772890276668,0.00022001,68041.0,68031.0,0.01828105]
[1772890276854,0.00022001,68043.0,68034.0,0.01828105]
[1772890277060,0.00022001,68043.0,68036.0,0.01828105]
[1772890278369,0.00022001,68039.0,68036.0,0.01828105]
[1772890278918,0.00022001,68043.0,68037.0,0.07348942]
[1772890281628,0.00022001,68043.0,68037.0,0.07340904]
[1772890283665,0.00022001,68043.0,68037.0,0.09169009]
[1772890286792,0.00022001,68043.0,68036.0,0.07368966]
[1772890286793,0.00474526,68043.0,68036.0,0.0002]
[1772890286988,0.00452525,68041.0,68035.0,0.00148]
[1772890288669,0.0734841,68042.0,68035.0,0.00148]
[1772890291296,0.0734841,68042.0,68035.0,0.00133]
[1772890292758,0.0734841,68042.0,68035.0,0.00153]
[1772890292960,0.07370356,68043.0,68035.0,0.00153]
[1772890293796,0.00022001,68043.0,68035.0,0.0750205]
[1772890293945,0.00022001,68043.0,68035.0,0.09330155]
[1772890297733,0.00022001,68043.0,68036.0,0.01828105]
[1772890299609,0.00243481,68050.0,68038.0,0.0687072]
[1772890299808,0.00243481,68050.0,68037.0,0.07348942]
[1772890300014,0.00243481,68050.0,68038.0,0.0687072]
[1772890300218,0.00243481,68050.0,68041.0,0.01857795]
[1772890300418,0.00243481,68050.0,68042.0,0.00148]
[1772890300773,0.00243481,68050.0,68042.0,0.02005795]
[1772890300973,0.00022001,68043.0,68042.0,0.02005795]
[1772890302186,0.00022001,68043.0,68042.0,0.09354197]
[1772890303554,0.00022001,68043.0,68042.0,0.16224917]
[1772890303959,0.00243481,68050.0,68042.0,0.16224917]
[1772890306988,0.00203481,68050.0,68042.0,0.16224917]
[1772890307351,0.00203481,68050.0,68042.0,0.09354197]
[1772890308606,0.00182001,68050.0,68042.0,0.09354197]
[1772890310405,0.00222001,68050.0,68042.0,0.09354197]
[1772890312953,0.00222001,68050.0,68042.0,0.0850689]
[1772890313251,0.00222001,68050.0,68043.0,0.00148]
[1772890315069,0.00222001,68050.0,68044.0,0.070963]
[1772890317265,0.00222001,68050.0,68044.0,0.070813]
[1772890322029,0.00182001,68050.0,68044.0,0.070813]
[1772890324878,0.0649061,68049.0,68030.0,0.07349646]
[1772890325091,0.0649061,68049.0,68031.0,0.00148]
[1772890325092,0.06502642,68049.0,68031.0,0.00148]
[1772890325644,0.00020208,68048.0,68031.0,0.00148]
[1772890325841,0.00020208,68046.0,68031.0,0.00148]
[1772890326096,0.0649061,68044.0,68032.0,0.00148]
[1772890326311,0.00020208,68043.0,68032.0,0.00148]
[1772890326632,0.00020208,68043.0,68030.0,0.07349646]
[1772890326833,0.00016691,68042.0,68032.0,0.07349482]
[1772890327264,0.00016691,68042.0,68035.0,0.0002]
[1772890331889,0.0649061,68041.0,68035.0,0.0002]
[1772890332468,0.0649061,68041.0,68025.0,0.0015629]
[1772890332672,0.0649061,68041.0,68025.0,8.29e-05]
[1772890332869,0.0649061,68041.0,68026.0,0.00148]
[1772890333095,0.13839228,68040.0,68026.0,0.00148]
[1772890333300,0.13839228,68040.0,68026.0,0.07498101]
[1772890333515,0.07348618,68040.0,68026.0,0.07498101]
[1772890333917,0.13839228,68040.0,68028.0,0.0002]
[1772890334647,0.18552173,68040.0,68028.0,0.0002]
[1772890335656,0.07348618,68040.0,68028.0,0.0002]
[1772890336235,0.07496618,68040.0,68028.0,0.0002]
[1772890337315,0.07348618,68040.0,68028.0,0.0002]
[1772890338595,0.13839228,68040.0,68028.0,0.0002]
[1772890345880,0.07348618,68040.0,68028.0,0.0002]
[1772890347027,0.07370619,68040.0,68028.0,0.0002]
[1772890350966,0.07370619,68040.0,68028.0,0.01949059]
[1772890354189,0.07370619,68040.0,68029.0,0.07349806]
[1772890354328,0.07370619,68040.0,68028.0,0.01949059]
[1772890354937,0.07370619,68040.0,68028.0,0.07369838]
[1772890355122,0.07370619,68040.0,68030.0,0.01929059]
[1772890362098,0.07370619,68040.0,68030.0,0.01877254]
[1772890363270,0.01873571,68039.0,68029.0,0.07349767]
[1772890364077,0.07348618,68041.0,68031.0,0.06365287]
[1772890364078,0.0734851,68041.0,68031.0,0.06365287]
[1772890364259,0.0734851,68041.0,68032.0,0.06365287]
[1772890365207,0.07348186,68044.0,68033.0,0.07349374]
[1772890366815,0.07348186,68044.0,68033.0,0.13714661]
[1772890367020,0.00022001,68041.0,68033.0,0.13714661]
[1772890367198,0.07370527,68041.0,68033.0,0.13714661]
[1772890368962,0.07369969,68047.0,68033.0,0.07349374]
[1772890369192,0.07369871,68047.0,68034.0,0.06365287]
[1772890369395,0.00059081,68047.0,68036.0,0.06365287]
[1772890371282,0.00228861,68050.0,68037.0,0.07348942]
[1772890371501,0.00228861,68050.0,68038.0,0.06365287]
[1772890372254,0.00228861,68050.0,68040.0,0.06365287]
[1772890373281,0.00228861,68050.0,68041.0,0.0734851]
[1772890373485,0.00228861,68050.0,68041.0,0.13713797]
[1772890378021,0.07576417,68050.0,68041.0,0.13713797]
[1772890380042,0.07576417,68050.0,68039.0,0.0749672]
[1772890380244,0.01856846,68049.0,68039.0,0.00148]
[1772890380441,0.01856846,68049.0,68038.0,0.07496823]
[1772890381198,0.01856846,68049.0,68038.0,0.07348823]
[1772890381341,0.01856846,68049.0,68038.0,0.07496823]
[1772890381667,0.01856846,68049.0,68038.0,0.07348823]
[1772890381873,0.01856846,68049.0,68038.0,0.07496823]
[1772890382278,0.01855449,68047.0,68038.0,0.00148]
[1772890382648,0.01855449,68047.0,68037.0,0.00012032]
[1772890382837,0.01855449,68047.0,68038.0,0.00148]
[1772890383728,0.01855449,68047.0,68037.0,0.00012032]
[1772890384020,0.01855449,68047.0,68038.0,0.00148]
[1772890384231,0.01852912,68046.0,68037.0,0.00012032]
[1772890384401,0.01852912,68046.0,68037.0,0.00160032]
[1772890386692,0.07347997,68046.0,68037.0,0.00012032]
[1772890386891,0.0185035,68045.0,68037.0,0.00160032]
[1772890387812,0.0185035,68045.0,68037.0,0.00012032]
[1772890387984,0.0185035,68045.0,68037.0,0.00160032]
[1772890388868,0.01872351,68045.0,68037.0,0.00160032]
[1772890389779,0.01872351,68045.0,68038.0,0.07348834]
[1772890391339,0.01872351,68045.0,68037.0,0.00012032]
[1772890391664,0.01872351,68045.0,68037.0,0.00160032]
[1772890391804,0.01872351,68045.0,68037.0,0.00012032]
[1772890392148,0.01872351,68045.0,68037.0,0.00160032]
[1772890392312,0.01872351,68045.0,68037.0,0.00012032]
[1772890392658,0.01872351,68045.0,68037.0,0.00160032]
[1772890394839,0.01872351,68045.0,68038.0,0.07348834]
[1772890396078,0.07495656,68049.0,68038.0,0.07348834]
[1772890396819,0.07347656,68049.0,68038.0,0.07348834]
[1772890397617,0.07347656,68049.0,68038.0,0.07368834]
[1772890397993,0.09188863,68049.0,68038.0,0.07368834]
[1772890398394,0.01841207,68048.0,68038.0,0.07368834]
[1772890399084,0.01841207,68047.0,68038.0,0.07368834]
[1772890399288,0.01841207,68047.0,68038.0,0.0002]
[1772890401020,0.0734797,68046.0,68038.0,0.0002]
[1772890401219,0.01841207,68045.0,68038.0,0.0002]
[1772890404029,0.07347751,68049.0,68038.0,0.0002]
[1772890404471,0.09188958,68049.0,68038.0,0.0002]
[1772890405010,0.09188958,68049.0,68038.0,0.07368834]
[1772890406801,0.07347751,68049.0,68038.0,0.07368834]
[1772890406958,0.07347751,68049.0,68039.0,0.06642342]
[1772890408540,0.07347751,68049.0,68040.0,0.1399096]
[1772890409627,0.00575,68051.0,68040.0,0.06642342]
[1772890409832,0.07347646,68050.0,68040.0,0.06642342]
[1772890412707,0.07347646,68050.0,68041.0,0.06025557]
[1772890414320,0.07922538,68051.0,68041.0,0.06025557]
[1772890414674,0.07922538,68051.0,68042.0,0.07348402]
[1772890414876,0.00022001,68050.0,68042.0,0.07348402]
[1772890415999,0.00022001,68050.0,68040.0,0.06025557]
[1772890419643,0.00022001,68050.0,68041.0,0.0734851]
[1772890420420,0.07369547,68050.0,68041.0,0.0734851]
[1772890420877,0.06132076,68048.0,68037.0,0.00012032]
[1772890421071,0.07369547,68050.0,68033.0,0.07369367]
[1772890421072,0.01847989,68045.0,68035.0,0.00148]
[1772890421307,0.01845999,68044.0,68034.0,0.00148]
[1772890421522,0.06132076,68041.0,68024.0,0.0002]
[1772890421697,0.07348726,68039.0,68024.0,0.0002]
[1772890422315,0.01845999,68037.0,68018.0,0.07378822]
[1772890422516,0.01845999,68033.0,68028.0,0.0002]